lending/lending_fUSD_20250316
["ID","MTS","AMOUNT","RATE_DAILY","PERIOD"]
[356225375,1742111461601,-500.0,0.00041369,31]
[356225376,1742111461610,-500.0,0.00041369,31]
[356225377,1742111461620,-1538.32,0.00041369,31]
[356225378,1742111461630,-500.0,0.00041369,31]
[356225379,1742111461640,-500.0,0.00041369,31]
[356225380,1742111461650,-591.92,0.00041369,31]
[356225381,1742111461659,-500.0,0.00041369,31]
[356225382,1742111461669,-500.0,0.00041369,31]
[356225383,1742111461679,-500.0,0.00041369,31]
[356225384,1742111461689,-1307.53,0.00041369,31]
[356225385,1742111461698,-500.0,0.00041369,31]
[356225386,1742111461707,-500.0,0.00041369,31]
[356225387,1742111461717,-500.0,0.00041369,30]
[356225388,1742111461727,-500.0,0.00041369,31]
[356225389,1742111461737,-240.51175073,0.00041369,31]
[356225390,1742111461747,-500.0,0.00041369,31]
[356225391,1742111461759,-718.08,0.00041369,31]
[356225392,1742111461768,-1195.59,0.00041369,31]
[356225393,1742111461778,-759.46,0.00041369,31]
[356225394,1742111461787,-816.43,0.00041369,31]
[356225395,1742111461797,-500.0,0.00041369,31]
[356225396,1742111461807,-500.0,0.00041369,31]
[356225397,1742111461816,-500.0,0.00041369,31]
[356225398,1742111461827,-669.82,0.00041369,31]
[356225399,1742111461837,-500.0,0.00041369,31]
[356225400,1742111461847,-500.0,0.00041369,31]
[356225401,1742111461857,-500.0,0.00041369,31]
[356225402,1742111461867,-500.0,0.00041369,31]
[356225403,1742111461877,-532.22,0.00041369,31]
[356225404,1742111461887,-583.52,0.00041369,31]
[356225405,1742111461896,-500.0,0.00041369,31]
[356225406,1742111461906,-160.66936251,0.00041369,31]
[356225407,1742111461917,-500.0,0.00041369,31]
[356225408,1742111461926,-500.0,0.00041369,31]
[356225409,1742111461936,-642.54770322,0.00041369,31]
[356225410,1742111461946,-500.0,0.00041369,31]
[356225411,1742111461956,-500.0,0.00041369,31]
[356225412,1742111461966,-500.0,0.00041369,31]
[356225413,1742111461976,-500.0,0.00041369,31]
[356225414,1742111461986,-500.0,0.00041369,31]
[356225415,1742111461995,-500.0,0.00041369,31]
[356225416,1742111462005,-500.0,0.00041369,31]
[356225417,1742111462014,-525.90955242,0.00041369,31]
[356225418,1742111462025,-500.0,0.00041369,31]
[356225419,1742111462035,-500.0,0.00041369,31]
[356225420,1742111462045,-1093.89,0.00041369,31]
[356225421,1742111462055,-500.0,0.00041369,31]
[356225422,1742111462065,-500.0,0.00041369,31]
[356225423,1742111462075,-500.0,0.00041369,31]
[356225424,1742111462085,-500.0,0.00041369,31]
[356225425,1742111462094,-500.0,0.00041369,31]
[356225426,1742111462104,-350.0,0.00041369,2]
[356225427,1742111462114,-664.63,0.00041369,31]
[356225428,1742111462124,-500.0,0.00041369,31]
[356225429,1742111462134,-500.0,0.00041369,31]
[356225430,1742111462144,-500.0,0.00041369,31]
[356225431,1742111462154,-521.69,0.00041369,31]
[356225432,1742111462164,-500.0,0.00041369,31]
[356225433,1742111462173,-500.0,0.00041369,31]
[356225434,1742111462183,-500.0,0.00041369,31]
[356225435,1742111462193,-500.0,0.00041369,31]
[356225436,1742111462203,-921.17,0.00041369,31]
[356225437,1742111462214,-500.0,0.00041369,31]
[356225438,1742111462224,-620.56,0.00041369,31]
[356225439,1742111462234,-987.05,0.00041369,31]
[356225440,1742111462244,-500.0,0.00041369,31]
[356225441,1742111462254,-500.0,0.00041369,31]
[356225442,1742111462264,-500.0,0.00041369,31]
[356225443,1742111462275,-500.0,0.00041369,31]
[356225444,1742111462287,-781.76,0.00041369,31]
[356225445,1742111462297,-500.0,0.00041369,31]
[356225446,1742111462307,-500.0,0.00041369,31]
[356225447,1742111462318,-500.0,0.00041369,31]
[356225448,1742111462333,-500.0,0.00041369,31]
[356225449,1742111462344,-845.81,0.00041369,31]
[356225450,1742111462354,-500.0,0.00041369,31]
[356225451,1742111462364,-500.0,0.00041369,31]
[356225452,1742111462374,-500.0,0.00041369,31]
[356225453,1742111462384,-500.0,0.00041369,31]
[356225454,1742111462394,-500.0,0.00041369,31]
[356225455,1742111462404,-1638.59,0.00041369,31]
[356225456,1742111462414,-693.95,0.00041369,31]
[356225457,1742111462423,-500.0,0.00041369,31]
[356225458,1742111462433,-500.0,0.00041369,31]
[356225459,1742111462443,-500.0,0.00041369,31]
[356225460,1742111462453,-500.0,0.00041369,31]
[356225461,1742111462463,-500.0,0.00041369,31]
[356225462,1742111462472,-500.0,0.00041369,31]
[356225463,1742111462482,-615.98,0.00041369,31]
[356225464,1742111462492,-500.0,0.00041369,31]
[356225465,1742111462502,-500.0,0.00041369,31]
[356225466,1742111462512,-1103.98,0.00041369,31]
[356225467,1742111462522,-500.0,0.00041369,31]
[356225468,1742111462532,-560.03,0.00041369,31]
[356225469,1742111462542,-524.38,0.00041369,31]
[356225470,1742111462552,-500.0,0.00041369,31]
[356225471,1742111462561,-779.68,0.00041369,31]
[356225472,1742111462571,-500.0,0.00041369,31]
[356225473,1742111462583,-153.403949,0.00041369,14]
[356225474,1742111462593,-948.44,0.00041369,31]
[356225475,1742111462603,-505.57,0.00041369,31]
[356225476,1742111462613,-804.83,0.00041369,31]
[356225477,1742111462623,-500.0,0.00041369,31]
[356225478,1742111462633,-1070.37,0.00041369,10]
[356225479,1742111462645,-757.94,0.00041369,31]
[356225480,1742111462655,-500.0,0.00041369,31]
[356225481,1742111462666,-500.0,0.00041369,31]
[356225482,1742111462676,-500.0,0.00041369,31]
[356225483,1742111462686,-1211.56,0.00041369,31]
[356225484,1742111462696,-500.0,0.00041369,31]
[356225485,1742111462706,-965.9,0.00041369,31]
[356225486,1742111462716,-500.0,0.00041369,31]
[356225487,1742111462726,-500.0,0.00041369,31]
[356225488,1742111462736,-500.0,0.00041369,31]
[356225489,1742111462746,-151.0,0.00041369,14]
[356225490,1742111462757,-500.0,0.00041369,31]
[356225491,1742111462768,-500.0,0.00041369,31]
[356225492,1742111462778,-431.74430964,0.00041369,31]
[356225493,1742111462787,-500.0,0.00041369,31]
[356225494,1742111462799,-500.0,0.00041369,31]
[356225495,1742111462809,-300.0,0.00041369,31]
[356225496,1742111462819,-500.0,0.00041369,31]
[356225497,1742111462830,-960.56,0.00041369,31]
[356225498,1742111462841,-500.0,0.00041369,31]
[356225499,1742111462853,-1545.52,0.00041369,7]
[356225500,1742111462863,-151.0,0.00041369,14]
[356225501,1742111462872,-500.0,0.00041369,31]
[356225502,1742111462881,-506.1666285,0.00041369,31]
[356225503,1742111462891,-500.0,0.00041369,31]
[356225504,1742111462901,-504.9098878,0.00041369,31]
[356225505,1742111462910,-512.78,0.00041369,31]
[356225506,1742111462919,-502.15255634,0.00041369,31]
[356225507,1742111462929,-564.0,0.00041369,31]
[356225508,1742111462939,-500.0,0.00041369,31]
[356225509,1742111462948,-500.0,0.00041369,31]
[356225510,1742111462958,-1248.52,0.00041369,31]
[356225511,1742111462969,-500.0,0.00041369,31]
[356225512,1742111462978,-500.0,0.00041369,31]
[356225513,1742111462988,-500.0,0.00041369,31]
[356225514,1742111462998,-500.0,0.00041369,31]
[356225515,1742111463007,-953.92,0.00041369,31]
[356225516,1742111463017,-600.0,0.00041369,31]
[356225517,1742111463028,-500.0,0.00041369,31]
[356225518,1742111463039,-500.0,0.00041369,31]
[356225519,1742111463049,-500.0,0.00041369,31]
[356225520,1742111463060,-500.0,0.00041369,31]
[356225521,1742111463070,-500.0,0.00041369,31]
[356225522,1742111463081,-500.0,0.00041369,31]
[356225523,1742111463091,-500.0,0.00041369,31]
[356225524,1742111463101,-151.0,0.00041369,14]
[356225525,1742111463111,-500.0,0.00041369,31]
[356225526,1742111463121,-1217.97,0.00041369,31]
[356225527,1742111463131,-500.0,0.00041369,31]
[356225528,1742111463142,-500.0,0.00041369,31]
[356225529,1742111463152,-500.0,0.00041369,14]
[356225530,1742111463162,-500.0,0.00041369,31]
[356225531,1742111463172,-500.0,0.00041369,31]
[356225532,1742111463182,-1765.6,0.00041369,31]
[356225533,1742111463191,-607.57,0.00041369,31]
[356225534,1742111463201,-500.0,0.00041369,31]
[356225535,1742111463211,-500.0,0.00041369,31]
[356225536,1742111463219,-706.52,0.00041369,31]
[356225537,1742111463230,-500.0,0.00041369,31]
[356225538,1742111463240,-500.0,0.00041369,31]
[356225539,1742111463250,-500.0,0.00041369,31]
[356225540,1742111463260,-500.0,0.00041369,31]
[356225541,1742111463271,-529.2,0.00041369,31]
[356225542,1742111463281,-500.0,0.00041369,31]
[356225543,1742111463291,-509.4251785,0.00041369,31]
[356225544,1742111463301,-1518.45,0.00041369,31]
[356225545,1742111463310,-500.0,0.00041369,31]
[356225546,1742111463320,-500.0,0.00041369,31]
[356225547,1742111463331,-500.0,0.00041369,31]
[356225548,1742111463341,-500.0,0.00041369,31]
[356225549,1742111463351,-500.0,0.00041369,31]
[356225550,1742111463361,-500.0,0.00041369,31]
[356225551,1742111463372,-785.48,0.00041369,31]
[356225552,1742111463381,-500.0,0.00041369,31]
[356225553,1742111463391,-666.80327942,0.00041369,31]
[356225554,1742111463401,-500.0,0.00041369,31]
[356225555,1742111463411,-1112.76,0.00041369,31]
[356225556,1742111463478,-4687.06,0.00041369,31]
[356225557,1742111463487,-500.0,0.00041369,31]
[356225558,1742111463498,-660.72,0.00041369,31]
[356225559,1742111463507,-500.0,0.00041369,31]
[356225560,1742111463517,-151.0,0.00041369,14]
[356225561,1742111463527,-500.0,0.00041369,31]
[356225562,1742111463537,-500.0,0.00041369,31]
[356225563,1742111463546,-500.0,0.00041369,31]
[356225564,1742111463556,-731.21,0.00041369,31]
[356225565,1742111463566,-500.0,0.00041369,31]
[356225566,1742111463577,-1384.4,0.00041369,31]
[356225567,1742111463587,-500.0,0.00041369,31]
[356225568,1742111463597,-500.0,0.00041369,30]
[356225569,1742111463606,-500.0,0.00041369,31]
[356225570,1742111463616,-549.87,0.00041369,31]
[356225571,1742111463626,-942.3,0.00041369,31]
[356225572,1742111463636,-500.0,0.00041369,31]
[356225573,1742111463645,-151.0,0.00041369,14]
[356225574,1742111463655,-500.0,0.00041369,31]
[356225575,1742111463666,-729.09,0.00041369,31]
[356225576,1742111463675,-500.0,0.00041369,31]
[356225577,1742111463685,-500.0,0.00041369,31]
[356225578,1742111463695,-151.0,0.00041369,14]
[356225579,1742111463705,-859.7,0.00041369,31]
[356225580,1742111463715,-617.27,0.00041369,31]
[356225581,1742111463725,-500.0,0.00041369,31]
[356225582,1742111463735,-500.0,0.00041369,31]
[356225583,1742111463744,-500.0,0.00041369,31]
[356225584,1742111463755,-500.0,0.00041369,31]
[356225585,1742111463768,-500.0,0.00041369,31]
[356225586,1742111463778,-550.81,0.00041369,31]
[356225587,1742111463788,-947.27,0.00041369,31]
[356225588,1742111463798,-500.0,0.00041369,31]
[356225589,1742111463809,-500.0,0.00041369,31]
[356225590,1742111463819,-500.0,0.00041369,31]
[356225591,1742111463831,-500.0,0.00041369,31]
[356225592,1742111463840,-500.0,0.00041369,31]
[356225593,1742111463850,-500.0,0.00041369,31]
[356225594,1742111463861,-500.0,0.00041369,31]
[356225595,1742111463870,-500.0,0.00041369,31]
[356225596,1742111463880,-6199.65,0.00041369,2]
[356225597,1742111463890,-500.0,0.00041369,31]
[356225598,1742111463899,-500.0,0.00041369,31]
[356225599,1742111463909,-500.0,0.00041369,31]
[356225600,1742111463918,-500.0,0.00041369,31]
[356225601,1742111463928,-753.92,0.00041369,31]
[356225602,1742111463937,-500.0,0.00041369,31]
[356225603,1742111463947,-553.96,0.00041369,31]
[356225604,1742111463957,-500.0,0.00041369,31]
[356225605,1742111463967,-500.0,0.00041369,31]
[356225606,1742111463977,-500.0,0.00041369,31]
[356225607,1742111463987,-500.0,0.00041369,31]
[356225608,1742111463996,-500.0,0.00041369,31]
[356225609,1742111464006,-902.3,0.00041369,31]
[356225610,1742111464016,-500.0,0.00041369,31]
[356225611,1742111464026,-753.45,0.00041369,31]
[356225612,1742111464035,-996.38,0.00041369,31]
[356225613,1742111464045,-500.0,0.00041369,31]
[356225614,1742111464055,-1743.26,0.00041369,31]
[356225615,1742111464064,-500.0,0.00041369,31]
[356225616,1742111464074,-500.0,0.00041369,31]
[356225617,1742111464085,-500.0,0.00041369,31]
[356225618,1742111464096,-974.64,0.00041369,31]
[356225619,1742111464105,-751.5,0.00041369,31]
[356225620,1742111464114,-500.0,0.00041369,31]
[356225621,1742111464124,-688.54,0.00041369,31]
[356225622,1742111464134,-756.01,0.00041369,30]
[356225623,1742111464144,-500.0,0.00041369,31]
[356225624,1742111464153,-500.0,0.00041369,31]
[356225625,1742111464163,-1395.42,0.00041369,31]
[356225626,1742111464173,-1143.47,0.00041369,31]
[356225627,1742111464183,-500.0,0.00041369,31]
[356225628,1742111464193,-500.0,0.00041369,31]
[356225629,1742111464203,-500.0,0.00041369,31]
[356225630,1742111464212,-500.0,0.00041369,31]
[356225631,1742111464222,-500.0,0.00041369,31]
[356225632,1742111464232,-303.99308579,0.00041369,31]
[356225633,1742111464242,-853.98,0.00041369,31]
[356225634,1742111464251,-500.0,0.00041369,31]
[356225635,1742111464261,-500.0,0.00041369,31]
[356225636,1742111464270,-500.0,0.00041369,31]
[356225637,1742111464280,-500.0,0.00041369,31]
[356225638,1742111464289,-976.91,0.00041369,31]
[356225639,1742111464299,-891.22,0.00041369,31]
[356225640,1742111464308,-500.0,0.00041369,31]
[356225641,1742111464317,-510.58,0.00041369,31]
[356225642,1742111464327,-500.0,0.00041369,31]
[356225643,1742111464336,-500.0,0.00041369,31]
[356225644,1742111464346,-500.0,0.00041369,31]
[356225645,1742111464355,-500.0,0.00041369,31]
[356225646,1742111464364,-151.0,0.00041369,14]
[356225647,1742111464374,-500.0,0.00041369,31]
[356225648,1742111464383,-500.0,0.00041369,31]
[356225649,1742111464392,-1217.97,0.00041369,31]
[356225650,1742111464402,-500.0,0.00041369,31]
[356225651,1742111464411,-598.8,0.00041369,31]
[356225652,1742111464420,-1307.29,0.00041369,31]
[356225653,1742111464429,-532.87,0.00041369,31]
[356225654,1742111464438,-559.89,0.00041369,31]
[356225655,1742111464447,-156.56645139,0.00041369,31]
[356225656,1742111464456,-500.0,0.00041369,31]
[356225657,1742111464465,-500.0,0.00041369,31]
[356225658,1742111464474,-1344.17,0.00041369,31]
[356225659,1742111464482,-500.0,0.00041369,31]
[356225660,1742111464491,-500.0,0.00041369,31]
[356225661,1742111464499,-500.0,0.00041369,31]
[356225662,1742111464508,-500.0,0.00041369,31]
[356225663,1742111464517,-500.0,0.00041369,31]
[356225664,1742111464525,-650.81,0.00041369,31]
[356225665,1742111464534,-500.0,0.00041369,31]
[356225666,1742111464543,-1282.95,0.00041369,31]
[356225667,1742111464553,-500.0,0.00041369,31]
[356225668,1742111464563,-1782.47,0.00041369,31]
[356225669,1742111464575,-667.69,0.00041369,31]
[356225670,1742111464584,-500.0,0.00041369,31]
[356225671,1742111464594,-500.0,0.00041369,31]
[356225672,1742111464603,-151.0,0.00041369,14]
[356225673,1742111464612,-500.0,0.00041369,31]
[356225674,1742111464621,-930.36,0.00041369,31]
[356225675,1742111464631,-607.98,0.00041369,31]
[356225676,1742111464640,-500.0,0.00041369,31]
[356225677,1742111464649,-500.0,0.00041369,31]
[356225678,1742111464659,-798.59,0.00041369,31]
[356225679,1742111464668,-500.0,0.00041369,31]
[356225680,1742111464677,-500.0,0.00041369,31]
[356225681,1742111464687,-500.0,0.00041369,31]
[356225682,1742111464696,-500.0,0.00041369,31]
[356225683,1742111464706,-500.0,0.00041369,31]
[356225684,1742111464716,-500.0,0.00041369,31]
[356225685,1742111464725,-500.0,0.00041369,31]
[356225686,1742111464735,-909.49,0.00041369,31]
[356225687,1742111464744,-505.94,0.00041369,31]
[356225688,1742111464753,-594.41744941,0.00041369,31]
[356225689,1742111464767,-1398.91,0.00041369,31]
[356225690,1742111464776,-500.0,0.00041369,31]
[356225691,1742111464785,-500.0,0.00041369,31]
[356225692,1742111464795,-904.9,0.00041369,31]
[356225693,1742111464804,-518.21,0.00041369,31]
[356225694,1742111464814,-736.88,0.00041369,31]
[356225695,1742111464823,-2706.13,0.00041369,31]
[356225696,1742111464834,-1096.96,0.00041369,31]
[356225697,1742111464843,-502.16,0.00041369,31]
[356225698,1742111464854,-500.0,0.00041369,31]
[356225699,1742111464865,-500.0,0.00041369,31]
[356225700,1742111464875,-500.0,0.00041369,31]
[356225701,1742111464884,-771.46,0.00041369,31]
[356225702,1742111464894,-500.0,0.00041369,31]
[356225703,1742111464903,-500.0,0.00041369,31]
[356225704,1742111464910,-1943.0,0.00041369,31]
[356225705,1742111464917,-500.0,0.00041369,31]
[356225706,1742111464924,-2893.62,0.00041369,31]
[356225707,1742111464930,-500.0,0.00041369,31]
[356225708,1742111464937,-559.09,0.00041369,31]
[356225709,1742111464944,-594.97,0.00041369,31]
[356225710,1742111464951,-1099.67,0.00041369,31]
[356225711,1742111464957,-608.45,0.00041369,31]
[356225712,1742111464964,-500.0,0.00041369,31]
[356225713,1742111464971,-171.64901048,0.00041369,31]
[356225714,1742111464979,-500.0,0.00041369,31]
[356225715,1742111464986,-500.0,0.00041369,31]
[356225716,1742111464993,-500.0,0.00041369,31]
[356225717,1742111465000,-500.0,0.00041369,31]
[356225718,1742111465007,-557.42,0.00041369,31]
[356225719,1742111465014,-778.96,0.00041369,31]
[356225720,1742111465023,-687.15,0.00041369,31]
[356225721,1742111465032,-562.21,0.00041369,31]
[356225722,1742111465041,-500.0,0.00041369,31]
[356225723,1742111465050,-500.0,0.00041369,31]
[356225724,1742111465059,-776.36,0.00041369,31]
[356225725,1742111465068,-500.0,0.00041369,31]
[356225726,1742111465077,-151.0,0.00041369,14]
[356225727,1742111465086,-722.28,0.00041369,31]
[356225728,1742111465096,-500.0,0.00041369,31]
[356225729,1742111465105,-500.0,0.00041369,31]
[356225730,1742111465114,-500.0,0.00041369,31]
[356225731,1742111465123,-659.6,0.00041369,31]
[356225732,1742111465133,-500.0,0.00041369,31]
[356225733,1742111465142,-500.0,0.00041369,31]
[356225734,1742111465152,-1067.18,0.00041369,31]
[356225735,1742111465161,-500.0,0.00041369,31]
[356225736,1742111465171,-500.0,0.00041369,31]
[356225737,1742111465180,-500.0,0.00041369,31]
[356225738,1742111465189,-2491.91,0.00041369,31]
[356225739,1742111465198,-500.0,0.00041369,31]
[356225740,1742111465207,-697.39,0.00041369,31]
[356225741,1742111465217,-500.0,0.00041369,31]
[356225742,1742111465227,-983.13,0.00041369,31]
[356225743,1742111465236,-775.18,0.00041369,31]
[356225744,1742111465246,-500.0,0.00041369,31]
[356225745,1742111465255,-500.0,0.00041369,31]
[356225746,1742111465265,-500.0,0.00041369,31]
[356225747,1742111465274,-500.0,0.00041369,31]
[356225748,1742111465283,-500.0,0.00041369,31]
[356225749,1742111465292,-689.44,0.00041369,31]
[356225750,1742111465301,-539.91,0.00041369,31]
[356225751,1742111465311,-500.0,0.00041369,31]
[356225752,1742111465319,-821.48,0.00041369,31]
[356225753,1742111465328,-627.84,0.00041369,31]
[356225754,1742111465337,-522.34,0.00041369,31]
[356225755,1742111465346,-805.93,0.00041369,31]
[356225756,1742111465355,-500.0,0.00041369,31]
[356225757,1742111465365,-500.0,0.00041369,31]
[356225758,1742111465375,-570.1,0.00041369,31]
[356225759,1742111465384,-500.0,0.00041369,31]
[356225760,1742111465394,-500.0,0.00041369,31]
[356225761,1742111465403,-586.65,0.00041369,31]
[356225762,1742111465412,-938.83,0.00041369,31]
[356225763,1742111465421,-743.89,0.00041369,31]
[356225764,1742111465430,-500.0,0.00041369,31]
[356225765,1742111465439,-500.0,0.00041369,31]
[356225766,1742111465448,-2055.51,0.00041369,31]
[356225767,1742111465457,-500.0,0.00041369,2]
[356225768,1742111465467,-1717.26,0.00041369,31]
[356225769,1742111465476,-500.0,0.00041369,31]
[356225770,1742111465485,-500.0,0.00041369,31]
[356225771,1742111465494,-500.0,0.00041369,31]
[356225772,1742111465503,-500.0,0.00041369,31]
[356225773,1742111465512,-500.0,0.00041369,31]
[356225774,1742111465522,-501.40891227,0.00041369,31]
[356225775,1742111465531,-519.06,0.00041369,31]
[356225776,1742111465540,-615.85,0.00041369,31]
[356225777,1742111465549,-952.36,0.00041369,31]
[356225778,1742111465559,-500.0,0.00041369,31]
[356225779,1742111465567,-1162.68,0.00041369,31]
[356225780,1742111465577,-191.29576347,0.00041369,31]
[356225781,1742111465586,-733.04,0.00041369,31]
[356225782,1742111465595,-500.0,0.00041369,31]
[356225783,1742111465604,-500.0,0.00041369,31]
[356225784,1742111465614,-508.68,0.00041369,31]
[356225785,1742111465623,-500.0,0.00041369,31]
[356225786,1742111465632,-539.79042424,0.00041369,2]
[356225787,1742111465641,-761.29,0.00041369,31]
[356225788,1742111465651,-500.0,0.00041369,31]
[356225789,1742111465660,-500.0,0.00041369,31]
[356225790,1742111465668,-500.0,0.00041369,31]
[356225791,1742111465677,-1074.18,0.00041369,31]
[356225792,1742111465686,-500.0,0.00041369,31]
[356225793,1742111465695,-500.0,0.00041369,31]
[356225794,1742111465704,-500.0,0.00041369,31]
[356225795,1742111465713,-500.0,0.00041369,31]
[356225796,1742111465723,-500.0,0.00041369,31]
[356225797,1742111465732,-500.0,0.00041369,31]
[356225798,1742111465741,-500.0,0.00041369,31]
[356225799,1742111465751,-500.0,0.00041369,31]
[356225800,1742111465763,-655.56,0.00041369,31]
[356225801,1742111465773,-706.21,0.00041369,31]
[356225802,1742111465782,-1351.46,0.00041369,31]
[356225803,1742111465791,-927.45,0.00041369,31]
[356225804,1742111465800,-151.0,0.00041369,14]
[356225805,1742111465811,-975.01,0.00041369,31]
[356225806,1742111465820,-1101.69,0.00041369,31]
[356225807,1742111465829,-828.2,0.00041369,31]
[356225808,1742111465841,-151.0,0.00041369,14]
[356225809,1742111465850,-500.0,0.00041369,31]
[356225810,1742111465860,-150.0,0.00041384,30]
[356225811,1742111465870,-1126.6,0.00041397,120]
[356225812,1742111465879,-168.1,0.000414,31]
[356225813,1742111465888,-250.2,0.0004142,120]
[356225814,1742111465897,-1126.6,0.00041424,120]
[356225815,1742111465907,-150.0,0.00041429,30]
[356225816,1742111465916,-2110.0,0.00041431,30]
[356225817,1742111465926,-1126.6,0.00041452,120]
[356225818,1742111465935,-1126.6,0.00041479,120]
[356225819,1742111465945,-150.0,0.00041495,30]
[356225820,1742111465954,-906.0,0.00041506,20]
[356225821,1742111465963,-1126.6,0.00041506,120]
[356225822,1742111465972,-150.0,0.00041516,30]
[356225823,1742111465981,-1126.6,0.00041534,120]
[356225824,1742111465990,-3000.0,0.00041534,2]
[356225825,1742111466000,-1126.6,0.00041561,120]
[356225826,1742111466009,-150.0,0.00041561,30]
[356225827,1742111466019,-5741.31504422,0.00041565,120]
[356225828,1742111466028,-1126.6,0.00041589,120]
[356225829,1742111466038,-1126.6,0.00041616,120]
[356225830,1742111466047,-150.0,0.0004162,30]
[356225831,1742111466056,-150.0,0.00041627,30]
[356225832,1742111466066,-209.0,0.0004164,2]
[356225833,1742111466076,-209.0,0.0004164,30]
[356225834,1742111466086,-214.0,0.0004164,2]
[356225835,1742111466095,-206.18704135,0.00041643,15]
[356225836,1742111466105,-1313.515609,0.00041643,31]
[356225837,1742111466114,-156.801182,0.00041643,31]
[356225838,1742111466123,-1612.967399,0.00041643,31]
[356225839,1742111466132,-500.0,0.00041643,31]
[356225840,1742111466142,-500.0,0.00041643,31]
[356225841,1742111466151,-500.0,0.00041643,31]
[356225842,1742111466161,-500.0,0.00041643,31]
[356225843,1742111466170,-151.0,0.00041643,14]
[356225844,1742111466180,-500.0,0.00041643,31]
[356225845,1742111466189,-556.85,0.00041643,31]
[356225846,1742111466198,-151.0,0.00041643,14]
[356225847,1742111466208,-902.79,0.00041643,31]
[356225848,1742111466218,-500.0,0.00041643,31]
[356225849,1742111466227,-500.0,0.00041643,31]
[356225850,1742111466236,-500.0,0.00041643,31]
[356225851,1742111466246,-151.0,0.00041643,14]
[356225852,1742111466255,-500.0,0.00041643,31]
[356225853,1742111466265,-500.0,0.00041643,31]
[356225854,1742111466275,-500.0,0.00041643,31]
[356225855,1742111466284,-500.0,0.00041643,31]
[356225856,1742111466294,-638.03,0.00041643,31]
[356225857,1742111466304,-641.64588591,0.00041643,31]
[356225858,1742111466314,-500.0,0.00041643,31]
[356225859,1742111466323,-591.42,0.00041643,31]
[356225860,1742111466333,-935.16,0.00041643,31]
[356225861,1742111466343,-500.0,0.00041643,31]
[356225862,1742111466352,-500.0,0.00041643,31]
[356225863,1742111466363,-500.0,0.00041643,31]
[356225864,1742111466372,-511.96,0.00041643,31]
[356225865,1742111466382,-500.0,0.00041643,31]
[356225866,1742111466392,-500.0,0.00041643,31]
[356225867,1742111466402,-500.0,0.00041643,31]
[356225868,1742111466412,-931.92,0.00041643,31]
[356225869,1742111466423,-830.53,0.00041643,31]
[356225870,1742111466433,-500.0,0.00041643,31]
[356225871,1742111466443,-500.0,0.00041643,31]
[356225872,1742111466452,-579.15,0.00041643,31]
[356225873,1742111466463,-500.0,0.00041643,31]
[356225874,1742111466473,-500.0,0.00041643,120]